lending/lending_fUSD_20250719
["ID","MTS","AMOUNT","RATE_DAILY","PERIOD"]
[373320492,1752943865610,-480.0,0.00019506,2]
[373320493,1752943865619,-480.0,0.00019506,2]
[373320494,1752943865629,-480.0,0.00019506,2]
[373320495,1752943865638,-480.0,0.00019506,2]
[373320496,1752943865648,-480.0,0.00019506,2]
[373320497,1752943865657,-601.93,0.00019506,2]
[373320498,1752943865667,-1031.87,0.00019506,2]
[373320499,1752943865677,-480.0,0.00019506,2]
[373320500,1752943865686,-750.21,0.00019506,2]
[373320501,1752943865695,-524.84,0.00019506,2]
[373320502,1752943865706,-480.0,0.00019506,2]
[373320503,1752943865715,-1362.0,0.00019506,2]
[373320504,1752943865729,-480.0,0.00019506,2]
[373320505,1752943865739,-480.0,0.00019506,2]
[373320506,1752943865749,-925.557106,0.00019506,2]
[373320507,1752943865759,-480.0,0.00019506,2]
[373320508,1752943865768,-1021.72,0.00019506,2]
[373320509,1752943865778,-480.0,0.00019506,2]
[373320510,1752943865788,-360.0,0.00019506,2]
[373320511,1752943865798,-480.0,0.00019506,2]
[373320512,1752943865809,-309.574514,0.00019506,2]
[373320513,1752943865822,-598.63,0.00019506,2]
[373320514,1752943865832,-360.0,0.00019506,2]
[373320515,1752943865842,-480.0,0.00019506,2]
[373320516,1752943865854,-925.557106,0.00019506,2]
[373320517,1752943865864,-480.0,0.00019506,2]
[373320518,1752943865874,-480.0,0.00019506,2]
[373320519,1752943865885,-974.52,0.00019506,2]
[373320520,1752943865895,-309.574514,0.00019506,2]
[373320521,1752943865905,-480.0,0.00019506,2]
[373320522,1752943865915,-480.0,0.00019506,2]
[373320523,1752943866017,-2177.47,0.00019506,2]
[373320524,1752943866027,-480.0,0.00019506,2]
[373320525,1752943866038,-480.0,0.00019506,2]
[373320526,1752943866048,-480.0,0.00019506,2]
[373320527,1752943866057,-481.32821958,0.00019506,2]
[373320528,1752943866066,-942.83,0.00019506,2]
[373320529,1752943866076,-480.0,0.00019506,2]
[373320530,1752943866086,-480.0,0.00019506,2]
[373320531,1752943866097,-828.96,0.00019506,2]
[373320532,1752943866107,-480.0,0.00019506,2]
[373320533,1752943866116,-480.0,0.00019506,2]
[373320534,1752943866126,-480.0,0.00019506,2]
[373320535,1752943866135,-480.0,0.00019506,2]
[373320536,1752943866145,-480.0,0.00019506,2]
[373320537,1752943866154,-380.0,0.00019506,2]
[373320538,1752943866164,-556.97,0.00019506,2]
[373320539,1752943866174,-480.0,0.00019506,2]
[373320540,1752943866183,-220.55804258,0.00019506,2]
[373320541,1752943866192,-480.0,0.00019506,2]
[373320542,1752943866202,-176.94467151,0.00019506,2]
[373320543,1752943866212,-826.87,0.00019506,2]
[373320544,1752943866221,-480.0,0.00019506,2]
[373320545,1752943866231,-480.0,0.00019506,2]
[373320546,1752943866241,-1611.36,0.00019506,2]
[373320547,1752943866251,-480.0,0.00019506,2]
[373320548,1752943866261,-1005.81,0.00019506,2]
[373320549,1752943866270,-2419.72,0.00019506,2]
[373320550,1752943866280,-480.0,0.00019506,2]
[373320551,1752943866289,-798.2,0.00019506,2]
[373320552,1752943866298,-480.0,0.00019506,2]
[373320553,1752943866308,-283.66,0.00019506,2]
[373320554,1752943866317,-570.36,0.00019506,2]
[373320555,1752943866327,-480.0,0.00019506,2]
[373320556,1752943866336,-480.0,0.00019506,2]
[373320557,1752943866346,-3364.0,0.00019506,2]
[373320558,1752943866356,-17484.1,0.00019506,2]
[373320559,1752943866365,-711.41,0.00019506,2]
[373320560,1752943866375,-480.0,0.00019506,2]
[373320561,1752943866384,-480.0,0.00019506,2]
[373320562,1752943866394,-480.0,0.00019506,2]
[373320563,1752943866403,-879.16,0.00019506,2]
[373320564,1752943866413,-360.0,0.00019506,2]
[373320565,1752943866422,-480.0,0.00019506,2]
[373320566,1752943866431,-552.45,0.00019506,2]
[373320567,1752943866440,-480.0,0.00019506,2]
[373320568,1752943866449,-480.0,0.00019506,2]
[373320569,1752943866458,-480.0,0.00019506,2]
[373320570,1752943866467,-2775.95,0.00019506,2]
[373320571,1752943866477,-480.0,0.00019506,2]
[373320572,1752943866487,-480.0,0.00019506,2]
[373320573,1752943866496,-728.17,0.00019506,2]
[373320574,1752943866505,-480.0,0.00019506,2]
[373320575,1752943866515,-480.0,0.00019506,2]
[373320576,1752943866524,-587.34,0.00019506,2]
[373320577,1752943866533,-912.42,0.00019506,2]
[373320578,1752943866543,-519.09,0.00019506,2]
[373320579,1752943866552,-480.0,0.00019506,2]
[373320580,1752943866561,-619.10929296,0.00019506,2]
[373320581,1752943866571,-548.41,0.00019506,2]
[373320582,1752943866581,-480.0,0.00019506,2]
[373320583,1752943866590,-480.0,0.00019506,2]
[373320584,1752943866600,-480.0,0.00019506,2]
[373320585,1752943866609,-480.0,0.00019506,2]
[373320586,1752943866620,-659.47,0.00019506,2]
[373320587,1752943866630,-310.0,0.00019506,2]
[373320588,1752943866639,-1040.27,0.00019506,2]
[373320589,1752943866648,-480.0,0.00019506,2]
[373320590,1752943866658,-480.0,0.00019506,2]
[373320591,1752943866667,-585.72,0.00019506,2]
[373320592,1752943866677,-639.04,0.00019506,2]
[373320593,1752943866687,-480.0,0.00019506,2]
[373320594,1752943866696,-480.0,0.00019506,2]
[373320595,1752943866706,-285.09,0.00019506,2]
[373320596,1752943866715,-556.83,0.00019506,2]
[373320597,1752943866726,-480.0,0.00019506,2]
[373320598,1752943866737,-1437.95,0.00019506,2]
[373320599,1752943866746,-781.47,0.00019506,2]
[373320600,1752943866755,-545.63,0.00019506,2]
[373320601,1752943866765,-480.0,0.00019506,2]
[373320602,1752943866776,-1105.47,0.00019506,2]
[373320603,1752943866785,-480.0,0.00019506,2]
[373320604,1752943866795,-531.31,0.00019506,2]
[373320605,1752943866804,-480.0,0.00019506,2]
[373320606,1752943866814,-633.88,0.00019506,2]
[373320607,1752943866823,-1624.27,0.00019506,2]
[373320608,1752943866833,-587.49,0.00019506,2]
[373320609,1752943866843,-1423.27,0.00019506,2]
[373320610,1752943866853,-480.0,0.00019506,2]
[373320611,1752943866863,-480.0,0.00019506,2]
[373320612,1752943866872,-732.76,0.00019506,2]
[373320613,1752943866881,-1060.24,0.00019506,2]
[373320614,1752943866890,-480.0,0.00019506,2]
[373320615,1752943866899,-536.35,0.00019506,2]
[373320616,1752943866909,-480.0,0.00019506,2]
[373320617,1752943866919,-480.0,0.00019506,2]
[373320618,1752943866928,-480.0,0.00019506,2]
[373320619,1752943866937,-480.0,0.00019506,2]
[373320620,1752943866947,-1470.77,0.00019506,2]
[373320621,1752943866956,-1633.7,0.00019506,2]
[373320622,1752943866965,-4700.03,0.00019506,2]
[373320623,1752943866975,-480.0,0.00019506,2]
[373320624,1752943866985,-480.0,0.00019506,2]
[373320625,1752943866995,-151.0,0.00019506,2]
[373320626,1752943867005,-1525.629002,0.00019506,2]
[373320627,1752943867014,-480.0,0.00019506,2]
[373320628,1752943867023,-1009.49,0.00019506,2]
[373320629,1752943867034,-480.0,0.00019506,2]
[373320630,1752943867043,-576.46,0.00019506,2]
[373320631,1752943867053,-491.06,0.00019506,2]
[373320632,1752943867062,-371.05,0.00019506,2]
[373320633,1752943867071,-1525.629002,0.00019506,2]
[373320634,1752943867083,-576.6,0.00019506,2]
[373320635,1752943867092,-588.39,0.00019506,2]
[373320636,1752943867103,-5960.49,0.00019506,2]
[373320637,1752943867113,-1021.89,0.00019506,2]
[373320638,1752943867122,-180.53,0.0001952,2]
[373320639,1752943867132,-5888.0,0.00019541,2]
[373320640,1752943867142,-500.0,0.00019561,2]
[373320641,1752943867151,-600.0,0.00019561,2]
[373320642,1752943867160,-503.49255766,0.00019561,2]
[373320643,1752943867169,-150.0,0.00019561,2]
[373320644,1752943867178,-150.0,0.00019561,2]
[373320645,1752943867188,-500.0,0.00019561,2]
[373320646,1752943867197,-150.0,0.00019561,2]
[373320647,1752943867206,-500.0,0.00019561,2]
[373320648,1752943867216,-3718.0,0.00019561,2]
[373320649,1752943867225,-150.0,0.00019561,2]
[373320650,1752943867235,-500.0,0.00019561,2]
[373320651,1752943867245,-1381.0,0.00019561,2]
[373320652,1752943867254,-150.0,0.00019561,2]
[373320653,1752943867263,-203.71399473,0.00019561,2]
[373320654,1752943867273,-500.0,0.00019561,2]
[373320655,1752943867282,-500.0,0.00019561,2]
[373320656,1752943867291,-500.0,0.00019561,2]
[373320657,1752943867300,-200.0,0.00019561,2]
[373320658,1752943867310,-150.0,0.00019561,2]
[373320659,1752943867319,-443.0,0.00019561,2]
[373320660,1752943867329,-500.0,0.00019561,2]
[373320661,1752943867339,-500.0,0.00019561,2]
[373320662,1752943867348,-266.33933359,0.00019561,2]
[373320663,1752943867358,-500.0,0.00019561,2]
[373320664,1752943867368,-150.0,0.00019561,2]
[373320665,1752943867377,-150.0,0.00019561,2]
[373320666,1752943867387,-503.0,0.00019561,2]
[373320667,1752943867397,-150.0,0.00019561,2]
[373320668,1752943867406,-150.0,0.00019561,2]
[373320669,1752943867415,-500.0,0.00019561,2]
[373320670,1752943867425,-150.0,0.00019561,2]
[373320671,1752943867435,-500.0,0.00019561,2]
[373320672,1752943867445,-1212.0,0.00019561,2]
[373320673,1752943867454,-208.995214,0.00019561,2]
[373320674,1752943867463,-208.995214,0.00019561,2]
[373320675,1752943867472,-151.0,0.00019561,2]
[373320676,1752943867482,-630.627786,0.00019561,2]
[373320677,1752943867491,-630.627786,0.00019561,2]
[373320678,1752943867501,-500.0,0.00019573,2]
[373320679,1752943867510,-382.244973,0.0001958,2]
[373320680,1752943867520,-382.244973,0.0001958,2]
[373320681,1752943867528,-151.0,0.0001958,2]
[373320682,1752943867538,-151.0,0.0001958,2]
[373320683,1752943867547,-266.819656,0.0001958,2]
[373320684,1752943867556,-266.819651,0.0001958,2]
[373320685,1752943867566,-151.0,0.0001958,2]
[373320686,1752943867575,-925.557106,0.0001958,2]
[373320687,1752943867585,-309.574514,0.0001958,2]
[373320688,1752943867594,-925.557115,0.0001958,2]
[373320689,1752943867604,-309.574508,0.0001958,2]
[373320690,1752943867614,-12176.31,0.0001958,2]
[373320691,1752943867623,-151.0,0.0001958,2]
[373320692,1752943867632,-6968.76100469,0.00019586,2]
[373320693,1752943867642,-151.0,0.00019603,2]
[373320694,1752943867651,-151.0,0.00019603,2]
[373320695,1752943867660,-271.735795,0.00019609,2]
[373320696,1752943867669,-271.735795,0.00019609,2]
[373320697,1752943867679,-151.0,0.00019609,2]
[373320698,1752943867688,-151.0,0.00019609,2]
[373320699,1752943867697,-480.0,0.00019611,2]
[373320700,1752943867706,-151.0,0.00019611,2]
[373320701,1752943867715,-1525.629002,0.00019611,2]
[373320702,1752943867727,-1525.629007,0.00019611,2]
[373320703,1752943867737,-151.0,0.00019612,2]
[373320704,1752943867747,-194.427389,0.00019612,2]
[373320705,1752943867756,-275.565567,0.00019612,2]
[373320706,1752943867766,-275.565567,0.00019612,2]
[373320707,1752943867776,-354.387571,0.00019612,2]
[373320708,1752943867786,-354.387571,0.00019612,2]
[373320709,1752943867795,-179.690044,0.00019612,2]
[373320710,1752943867805,-179.690044,0.00019612,2]
[373320711,1752943867815,-151.0,0.00019612,2]
[373320712,1752943867824,-151.0,0.00019615,2]
[373320713,1752943867834,-151.0,0.00019615,2]
[373320714,1752943867843,-151.0,0.00019615,2]
[373320715,1752943867854,-503.89,0.00019615,2]
[373320716,1752943867863,-991.3,0.00019615,2]
[373320717,1752943867874,-300.0,0.00019615,2]
[373320718,1752943867883,-151.0,0.00019616,2]
[373320719,1752943867892,-151.0,0.00019616,2]
[373320720,1752943867902,-151.0,0.00019616,2]
[373320721,1752943867911,-480.0,0.00019616,2]
[373320722,1752943867920,-151.0,0.00019616,2]
[373320723,1752943867930,-480.0,0.00019616,2]
[373320724,1752943867939,-151.0,0.00019616,2]
[373320725,1752943867949,-1557.145121,0.00019616,2]
[373320726,1752943867958,-1459.65329,0.00019616,2]
[373320727,1752943867967,-1472.732795,0.00019616,2]
[373320728,1752943867976,-480.0,0.00019616,2]
[373320729,1752943867986,-480.0,0.00019616,2]
[373320730,1752943867995,-480.0,0.00019616,2]
[373320731,1752943868004,-151.0,0.00019616,2]
[373320732,1752943868013,-151.0,0.00019616,2]
[373320733,1752943868023,-550.17,0.00019616,2]
[373320734,1752943868032,-274.3902877,0.00019616,2]
[373320735,1752943868041,-320.0,0.00019616,2]
[373320736,1752943868051,-480.0,0.00019616,2]
[373320737,1752943868060,-264.22,0.00019616,2]
[373320738,1752943868069,-480.0,0.00019616,2]
[373320739,1752943868078,-271.735795,0.00019616,2]
[373320740,1752943868087,-271.735801,0.00019616,2]
[373320741,1752943868098,-151.0,0.00019616,2]
[373320742,1752943868107,-480.0,0.00019616,2]
[373320743,1752943868116,-480.0,0.00019616,2]
[373320744,1752943868125,-480.0,0.00019616,2]
[373320745,1752943868135,-249.26,0.00019616,2]
[373320746,1752943868144,-480.0,0.00019616,2]
[373320747,1752943868153,-480.0,0.00019616,2]
[373320748,1752943868163,-480.0,0.00019616,2]
[373320749,1752943868172,-251.530109,0.00019616,2]
[373320750,1752943868181,-251.530109,0.00019616,2]
[373320751,1752943868190,-480.0,0.00019616,2]
[373320752,1752943868200,-251.530109,0.00019616,2]
[373320753,1752943868209,-251.530109,0.00019616,2]
[373320754,1752943868219,-480.0,0.00019616,2]
[373320755,1752943868229,-480.0,0.00019616,2]
[373320756,1752943868238,-480.0,0.00019616,2]
[373320757,1752943868247,-555.93,0.00019616,2]
[373320758,1752943868257,-736.27,0.00019616,2]
[373320759,1752943868267,-480.0,0.00019616,2]
[373320760,1752943868276,-480.0,0.00019616,2]
[373320761,1752943868285,-480.0,0.00019616,2]
[373320762,1752943868294,-480.0,0.00019616,2]
[373320763,1752943868304,-480.0,0.00019616,2]
[373320764,1752943868313,-480.0,0.00019616,2]
[373320765,1752943868322,-275.565567,0.00019616,2]
[373320766,1752943868332,-151.0,0.00019616,2]
[373320767,1752943868342,-480.0,0.00019616,2]
[373320768,1752943868353,-480.0,0.00019616,2]
[373320769,1752943868362,-275.565569,0.00019616,2]
[373320770,1752943868372,-480.0,0.00019616,2]
[373320771,1752943868381,-480.0,0.00019616,2]
[373320772,1752943868391,-545.91,0.00019616,2]
[373320773,1752943868400,-354.387571,0.00019616,2]
[373320774,1752943868409,-480.0,0.00019616,2]
[373320775,1752943868419,-354.387571,0.00019616,2]
[373320776,1752943868428,-480.0,0.00019616,2]
[373320777,1752943868438,-480.0,0.00019616,2]
[373320778,1752943868447,-595.78,0.00019616,2]
[373320779,1752943868457,-509.69,0.00019616,2]
[373320780,1752943868466,-480.0,0.00019616,2]
[373320781,1752943868475,-179.690044,0.00019616,2]
[373320782,1752943868485,-179.690043,0.00019616,2]
[373320783,1752943868495,-242.6044111,0.00019616,2]
[373320784,1752943868504,-151.0,0.00019616,2]
[373320785,1752943868515,-480.0,0.00019616,2]
[373320786,1752943868525,-480.0,0.00019616,2]
[373320787,1752943868534,-716.3,0.00019616,2]
[373320788,1752943868543,-151.11555642,0.00019616,2]
[373320789,1752943868553,-480.0,0.00019616,2]
[373320790,1752943868562,-480.0,0.00019616,2]
[373320791,1752943868571,-480.0,0.00019616,2]
[373320792,1752943868580,-480.0,0.00019616,2]
[373320793,1752943868589,-480.0,0.00019616,2]
[373320794,1752943868599,-480.0,0.00019616,2]
[373320795,1752943868608,-480.0,0.00019616,2]
[373320796,1752943868618,-480.0,0.00019616,2]
[373320797,1752943868627,-480.0,0.00019616,2]
[373320798,1752943868636,-480.0,0.00019616,2]
[373320799,1752943868646,-480.0,0.00019616,2]
[373320800,1752943868655,-480.0,0.00019616,2]
[373320801,1752943868664,-480.0,0.00019616,2]
[373320802,1752943868673,-480.0,0.00019616,2]
[373320803,1752943868682,-382.244973,0.00019616,2]
[373320804,1752943868692,-363.55,0.00019616,2]
[373320805,1752943868701,-382.244971,0.00019616,2]
[373320806,1752943868710,-480.0,0.00019616,2]
[373320807,1752943868720,-480.0,0.00019616,2]
[373320808,1752943868733,-695.29,0.00019616,2]
[373320809,1752943868742,-340.0,0.00019616,2]
[373320810,1752943868751,-480.0,0.00019616,2]
[373320811,1752943868760,-480.0,0.00019616,2]
[373320812,1752943868771,-373.92618965,0.00019616,2]
[373320813,1752943868779,-480.0,0.00019616,2]
[373320814,1752943868789,-480.0,0.00019616,2]
[373320815,1752943868800,-480.0,0.00019616,2]
[373320816,1752943868810,-151.0,0.00019616,2]
[373320817,1752943868819,-515.25,0.00019616,2]
[373320818,1752943868829,-151.0,0.00019616,2]
[373320819,1752943868838,-447.99,0.00019616,2]
[373320820,1752943868847,-151.0,0.00019616,2]
[373320821,1752943868856,-480.0,0.00019616,2]
[373320822,1752943868866,-506.58,0.00019616,2]
[373320823,1752943868875,-480.0,0.00019616,2]
[373320824,1752943868885,-300.73,0.00019616,2]
[373320825,1752943868894,-480.0,0.00019616,2]
[373320826,1752943868904,-480.0,0.00019616,2]
[373320827,1752943868913,-299.61,0.00019616,2]
[373320828,1752943868923,-346.91,0.00019616,2]
[373320829,1752943868932,-480.0,0.00019616,2]
[373320830,1752943868942,-480.0,0.00019616,2]
[373320831,1752943868951,-480.0,0.00019616,2]
[373320832,1752943868961,-480.0,0.00019616,2]
[373320833,1752943868970,-480.0,0.00019616,2]
[373320834,1752943868979,-480.0,0.00019616,2]
[373320835,1752943868990,-480.0,0.00019616,2]
[373320836,1752943869000,-208.995214,0.00019616,2]
[373320837,1752943869009,-208.995224,0.00019616,2]
[373320838,1752943869019,-167.88,0.00019616,2]
[373320839,1752943869028,-480.0,0.00019616,2]
[373320840,1752943869038,-480.0,0.00019616,2]
[373320841,1752943869048,-186.44975469,0.00019616,2]
[373320842,1752943869058,-151.0,0.00019616,2]
[373320843,1752943869068,-480.0,0.00019616,2]
[373320844,1752943869077,-480.0,0.00019616,2]
[373320845,1752943869087,-480.0,0.00019616,2]
[373320846,1752943869097,-480.0,0.00019616,2]
[373320847,1752943869106,-480.0,0.00019616,2]
[373320848,1752943869116,-480.0,0.00019616,2]
[373320849,1752943869126,-510.51,0.00019616,2]
[373320850,1752943869135,-630.627786,0.00019616,2]
[373320851,1752943869145,-523.9,0.00019616,2]
[373320852,1752943869155,-630.627776,0.00019616,2]
[373320853,1752943869165,-480.0,0.00019616,2]
[373320854,1752943869175,-480.0,0.00019616,2]
[373320855,1752943869184,-480.0,0.00019616,2]
[373320856,1752943869193,-480.0,0.00019616,2]
[373320857,1752943869203,-480.0,0.00019616,2]
[373320858,1752943869213,-480.0,0.00019616,2]
[373320859,1752943869223,-473.33748613,0.00019616,2]
[373320860,1752943869233,-503.07,0.00019616,2]
[373320861,1752943869243,-480.0,0.00019616,2]
[373320862,1752943869253,-556.63,0.00019616,2]
[373320863,1752943869263,-758.59,0.00019616,2]
[373320864,1752943869272,-480.0,0.00019616,2]
[373320865,1752943869282,-480.0,0.00019616,2]
[373320866,1752943869293,-480.0,0.00019616,2]
[373320867,1752943869304,-480.0,0.00019616,2]
[373320868,1752943869315,-480.0,0.00019616,2]
[373320869,1752943869325,-480.0,0.00019616,2]
[373320870,1752943869334,-480.0,0.00019616,2]
[373320871,1752943869344,-480.0,0.00019616,2]
[373320872,1752943869356,-526.41,0.00019616,2]
[373320873,1752943869366,-480.0,0.00019616,2]
[373320874,1752943869377,-480.0,0.00019616,2]
[373320875,1752943869387,-2364.56,0.00019616,2]
[373320876,1752943869398,-480.0,0.00019616,2]
[373320877,1752943869408,-480.0,0.00019616,2]
[373320878,1752943869418,-708.41,0.00019616,2]
[373320879,1752943869428,-614.76,0.00019616,2]
[373320880,1752943869439,-728.03,0.00019616,2]
[373320881,1752943869448,-480.0,0.00019616,2]
[373320882,1752943869458,-926.56,0.00019616,2]
[373320883,1752943869468,-1776.31,0.00019616,2]
[373320884,1752943869478,-568.24,0.00019616,2]
[373320885,1752943869488,-480.0,0.00019616,2]
[373320886,1752943869498,-480.0,0.00019616,2]
[373320887,1752943869507,-639.91,0.00019616,2]
[373320888,1752943869517,-480.0,0.00019616,2]
[373320889,1752943869526,-739.39,0.00019616,2]
[373320890,1752943869536,-965.46,0.00019616,2]
[373320891,1752943869545,-480.0,0.00019616,2]
[373320892,1752943869555,-480.0,0.00019616,2]
[373320893,1752943869564,-824.31,0.00019616,2]
[373320894,1752943869574,-480.0,0.00019616,2]
[373320895,1752943869584,-3679.87,0.00019616,2]
[373320896,1752943869594,-651.46,0.00019616,2]
[373320897,1752943869606,-3282.25,0.00019616,2]
[373320898,1752943869616,-1426.99,0.00019616,2]
[373320899,1752943869626,-567.89,0.00019616,2]
[373320900,1752943869636,-525.53,0.00019616,2]
[373320901,1752943869646,-480.0,0.00019616,2]
[373320902,1752943869656,-480.0,0.00019616,2]
[373320903,1752943869667,-480.0,0.00019616,2]
[373320904,1752943869677,-668.04,0.00019616,2]
[373320905,1752943869688,-480.0,0.00019616,2]
[373320906,1752943869699,-797.63,0.00019616,2]
[373320907,1752943869710,-791.95,0.00019616,2]
[373320908,1752943869720,-617.74,0.00019616,2]
[373320909,1752943869735,-480.0,0.00019616,2]
[373320910,1752943869744,-702.27,0.00019616,2]
[373320911,1752943869752,-640.28,0.00019616,2]
[373320912,1752943869760,-523.63,0.00019616,2]
[373320913,1752943869770,-2586.65,0.00019616,2]
[373320914,1752943869778,-480.0,0.00019616,2]
[373320915,1752943869786,-480.0,0.00019616,2]
[373320916,1752943869794,-480.0,0.00019616,2]
[373320917,1752943869804,-480.0,0.00019616,2]
[373320918,1752943869813,-1294.91,0.00019616,2]
[373320919,1752943869822,-480.0,0.00019616,2]
[373320920,1752943869832,-480.0,0.00019616,2]
[373320921,1752943869841,-1637.75,0.00019616,2]
[373320922,1752943869850,-2000.23,0.00019616,2]
[373320923,1752943869859,-498.01,0.00019616,2]
[373320924,1752943869868,-480.0,0.00019616,2]
[373320925,1752943869877,-480.0,0.00019616,2]
[373320926,1752943869886,-1150.84,0.00019616,2]
[373320927,1752943869894,-480.0,0.00019616,2]
[373320928,1752943869903,-488.92,0.00019616,2]
[373320929,1752943869911,-480.0,0.00019616,2]
[373320930,1752943869920,-1162.91,0.00019616,2]
[373320931,1752943869928,-1228.06,0.00019616,2]
[373320932,1752943869935,-480.0,0.00019616,2]
[373320933,1752943869944,-480.0,0.00019616,2]
[373320934,1752943869953,-480.0,0.00019616,2]
[373320935,1752943869960,-492.45,0.00019616,2]
[373320936,1752943869968,-1012.75,0.00019616,2]
[373320937,1752943869975,-2721.18,0.00019616,2]
[373320938,1752943869982,-480.0,0.00019616,2]
[373320939,1752943869990,-3030.15,0.00019616,2]
[373320940,1752943869997,-1766.08,0.00019616,2]
[373320941,1752943870004,-1186.68,0.00019616,2]
[373320942,1752943870011,-480.0,0.00019616,2]
[373320943,1752943870018,-679.12,0.00019616,2]
[373320944,1752943870025,-566.54,0.00019616,2]
[373320945,1752943870032,-480.0,0.00019616,2]
[373320946,1752943870040,-480.0,0.00019616,2]
[373320947,1752943870049,-830.78,0.00019616,2]
[373320948,1752943870056,-208.98,0.00019616,2]
[373320949,1752943870063,-480.0,0.00019616,2]
[373320950,1752943870071,-480.0,0.00019616,2]
[373320951,1752943870079,-480.0,0.00019616,2]
[373320952,1752943870086,-480.0,0.00019616,2]
[373320953,1752943870093,-480.0,0.00019616,2]
[373320954,1752943870104,-480.0,0.00019616,2]
[373320955,1752943870115,-601.93,0.00019616,2]
[373320956,1752943870123,-1031.87,0.00019616,2]
[373320957,1752943870130,-480.0,0.00019616,2]
[373320958,1752943870137,-750.21,0.00019616,2]
[373320959,1752943870148,-524.84,0.00019616,2]
[373320960,1752943870159,-480.0,0.00019616,2]
[373320961,1752943870169,-1362.0,0.00019616,2]
[373320962,1752943870183,-480.0,0.00019616,2]
[373320963,1752943870194,-480.0,0.00019616,2]
[373320964,1752943870204,-480.0,0.00019616,2]
[373320965,1752943870214,-1021.72,0.00019616,2]
[373320966,1752943870225,-480.0,0.00019616,2]
[373320967,1752943870235,-533.87181516,0.00019616,2]
[373320968,1752943870245,-598.63,0.00019616,2]
[373320969,1752943870256,-480.0,0.00019616,2]
[373320970,1752943870267,-480.0,0.00019616,2]
[373320971,1752943870277,-480.0,0.00019616,2]
[373320972,1752943870288,-974.52,0.00019616,2]
[373320973,1752943870298,-480.0,0.00019616,2]
[373320974,1752943870309,-480.0,0.00019616,2]
[373320975,1752943870320,-2177.47,0.00019616,2]
[373320976,1752943870331,-253.27251027,0.00019616,2]
[373320977,1752943870342,-480.0,0.00019616,2]
[373320978,1752943870352,-480.0,0.00019616,2]
[373320979,1752943870363,-942.83,0.00019616,2]
[373320980,1752943870373,-340.0,0.00019616,2]
[373320981,1752943870384,-480.0,0.00019616,2]
[373320982,1752943870395,-828.96,0.00019616,2]
[373320983,1752943870405,-480.0,0.00019616,2]
[373320984,1752943870416,-480.0,0.00019616,2]
[373320985,1752943870428,-480.0,0.00019616,2]
[373320986,1752943870440,-480.0,0.00019616,2]
[373320987,1752943870453,-480.0,0.00019616,2]
[373320988,1752943870463,-556.97,0.00019616,2]
[373320989,1752943870473,-360.0,0.00019616,2]
[373320990,1752943870483,-480.0,0.00019616,2]
[373320991,1752943870493,-826.87,0.00019616,2]